Cogmind - Beta 16.1 @@@ ROGUE MODE // 2026.04.03 @ 22:22:26 Player: shreknel Result: Destroyed by RD-HVI(R) with Subdweller Laser Performance ------------- Evolutions (0) 0 Regions Visited (3) 600 Robots Destroyed (11) 55 Value Destroyed (351) 351 Prototype IDs (0) 0 Alien Tech Used (0) 0 Bonus (0) 0 TOTAL SCORE: 1006 Bonus ------- None Cogmind --------- Core Integrity 0/250 Matter 276/300 Energy 250/250 System Corruption 0% Temperature Cool (6) Movement Walking (190) Ox1 Location -10/Subcaves Parts ------- > --- POWER (1) -------- Ion Engine > --- PROPULSION (2) --- Aluminum Leg Aluminum Leg > --- UTILITY (2) ------ Medium Storage Unit Subdweller Optics > --- WEAPON (2) ------- Assault Rifle Battle Cannon > --- INVENTORY (10) --- Subdweller Power Source Scrap Suit Disposable Heat Sink Small Storage Unit Terrain Scanner ECM Suite Subdweller Laser Battle Rifle Scrap Shield Fragment (48) Peak State ------------ > --- POWER ------------ Ion Engine > --- PROPULSION ------- Aluminum Leg Carbon-fiber Leg > --- UTILITY ---------- Small Storage Unit Sensor Array > --- WEAPON ----------- Medium Laser Subdweller Machine Gun > --- INVENTORY -------- Ion Engine Aluminum Leg Scrap Suit Disposable Heat Sink Terrain Scanner ECM Suite Assault Rifle [Rating: 11] Favorites ----------- Power Ion Engine Engine Ion Engine Propulsion Aluminum Leg Leg Aluminum Leg Utility Small Storage Unit Device Sensor Array Storage Small Storage Unit Weapon Medium Laser Energy Gun Medium Laser Ballistic Gun Assault Rifle Ballistic Cannon Battle Cannon Build | -11 -10 -10 -10 ------- Run | Yrd Mat Min Sub Slots Evolved . | . . . . Power . | . . . . Propulsion . | . . . . Utility . | . . . . Weapon . | . . . . Parts Attached 17 | 6 . 2 9 Power 2 | 1 . . 1 Engine 2 | 1 . . 1 Core . | . . . . Reactor . | . . . . Propulsion 5 | 2 . . 3 Treads . | . . . . Leg 5 | 2 . . 3 Wheel . | . . . . Hover . | . . . . Flight . | . . . . Utility 4 | 1 . 1 2 Device 2 | . . 1 1 Storage 2 | 1 . . 1 Processor . | . . . . Hackware . | . . . . Protection . | . . . . Artifact . | . . . . Weapon 6 | 2 . 1 3 Energy Gun 2 | 2 . . . Energy Cannon . | . . . . Ballistic Gun 3 | . . 1 2 Ballistic Cannon 1 | . . . 1 Launcher . | . . . . Special Weapon . | . . . . Impact Weapon . | . . . . Slashing Weapon . | . . . . Piercing Weapon . | . . . . Special Melee Weapon . | . . . . Unidentified Prototypes . | . . . . Parts Lost 7 | . . . 7 Power 1 | . . . 1 Propulsion 3 | . . . 3 Utility 1 | . . . 1 Weapon 2 | . . . 2 Highest Loss Streak 3 | . . . 3 To Critical Strikes 1 | . . . 1 Average Backups 6 | 3 6 7 7 Power . | . 1 1 . Propulsion 1 | 2 4 2 . Utility 3 | . . 1 4 Weapon 1 | . 1 2 1 Tool/Special . | . . . . Unused Backups 15 | . 2 6 7 Power 3 | . . 2 1 Propulsion 4 | . 2 2 . Utility 5 | . . 1 4 Weapon 3 | . . 1 2 Tool/Special . | . . . . Average Slot Usage (%) 95 | . 85 93 96 Engine 14 | . 14 14 14 Leg 26 | . 28 28 26 Device 11 | . . 8 13 Storage 14 | . 14 14 14 Energy Gun 11 | . 28 26 4 Ballistic Gun 12 | . . 1 17 Ballistic Cannon 3 | . . . 4 Peak Build Rating 11 | 6 6 8 11 Average Rating 8 | 4 6 6 9 On Entrance 5 | . 6 6 8 Avg Prop Armor Cover (%) . | . . . . Naked Turns . | . . . . Heaviest Build 22 | 13 13 14 22 Greatest Support 25 | 20 20 20 25 Greatest Overweight (x) 4 | . . . 4 Average Overweight (x) . | . . . . Largest Inventory Capacity 10 | 8 8 8 10 Average Capacity 8 | 6 8 8 9 Most Carried 10 | 6 6 8 10 Average Carried 7 | 3 5 7 8 Final Capacity 10 | 8 8 8 10 Final Carried 10 | 6 6 8 10 Class Distribution -------------------- 100% | Mutant Dominant Class ---------------- Mutant | -10/Materials Mutant | -10/Mines Mutant | -10/Subcaves Resources | -11 -10 -10 -10 ----------- Run | Yrd Mat Min Sub Matter Collected 450 | 220 40 10 180 Remotely . | . . . . Salvage Created 412 | . 55 57 300 Parts 29 | . 4 8 17 Haulers Intercepted . | . . . . Recyclers Shooed . | . . . . Parts Field Recycled . | . . . . Retrieved Matter . | . . . . Parts Self-Destructed 8 | . . . 8 Prevented . | . . . . Parts Restored . | . . . . Kills | -11 -10 -10 -10 ------- Run | Yrd Mat Min Sub Combat Hostiles Destroyed 11 | . 1 3 7 Guns 11 | . 1 3 7 Classes Destroyed 3 | . 1 1 1 Swarmer 3 | . . 3 . Grunt 2 | . 1 . 1 Subdweller 6 | . . . 6 Best Kill Streak 3 | . 1 3 2 Combat Bots Only 3 | . 1 3 2 Max Kills in Single Turn 2 | . 1 2 1 Gunslinging 1 | . . 1 . Exploded . | . . . . Melee . | . . . . Uniques/NPCs Destroyed . | . . . . Combat | -11 -10 -10 -10 -------- Run | Yrd Mat Min Sub Hostile Shots Fired 76 | . 11 12 53 Missed 21 | . 1 7 13 Hits 55 | . 10 5 40 Projectile 55 | . 10 5 40 Critical Strikes 1 | . . . 1 Damage Taken 1009 | . 148 36 825 Core 270 | . 51 9 210 Absorbed by Shields . | . . . . Core Remaining (%) 100 | 100 . . . Volleys Fired 55 | . 8 5 42 Largest 2 | . 2 2 2 Hottest 90 | . 90 90 80 Shots Fired 104 | . 16 10 78 Gun 98 | . 16 10 72 Cannon 6 | . . . 6 Launcher . | . . . . Special . | . . . . Kinetic 59 | . . . 59 Thermal 45 | . 16 10 19 Explosive . | . . . . Electromagnetic . | . . . . Robot Hit Streak 14 | . 3 2 14 Robot Miss Streak 2 | . 1 2 2 Penetration Max . | . . . . Secondary Targets 2 | . . 1 1 Max Gunslinging Chain 1 | . . 1 1 Shots Hit Robots 68 | . 11 5 52 Core Hits 25 | . 4 3 18 Critical Kills . | . . . . Critical Parts Destroyed . | . . . . Critical Strikes 2 | . . . 2 Burn 2 | . . . 2 Melee Attacks . | . . . . Impact . | . . . . Slashing . | . . . . Piercing . | . . . . Sneak Attacks . | . . . . Combat Hostiles . | . . . . Follow-up Attacks . | . . . . Damage Inflicted 905 | . 132 53 720 Guns 871 | . 132 53 686 Cannons 34 | . . . 34 Explosions . | . . . . Melee . | . . . . Ramming . | . . . . Kinetic 533 | . . . 533 Thermal 372 | . 132 53 187 Explosive . | . . . . Electromagnetic . | . . . . Impact . | . . . . Slashing . | . . . . Piercing . | . . . . Highest Corruption . | . . . . Average Corruption . | . . . . Corruption Purged . | . . . . Corruption Blocked . | . . . . Overload Shots . | . . . . Overflow Damage . | . . . . Projectiles . | . . . . Explosions . | . . . . Melee . | . . . . Knockbacks . | . . . . Impact . | . . . . Kinetic . | . . . . Secondary . | . . . . Self-Inflicted Damage . | . . . . Shots . | . . . . Rammed . | . . . . Targets Rammed . | . . . . Kicked . | . . . . Crushed . | . . . . Highest Temperature 252 | . 252 150 4 Average Temperature 86 | . 107 78 2 Received Heat Transfer 306 | . 84 . 222 Effects 1 | . 1 . . Energy Bleed 1 | . 1 . . Siege Activations . | . . . . Martial Activations . | . . . . Shielding Activations . | . . . . Robots Disrupted . | . . . . Combat Hostiles . | . . . . Robots Corrupted . | . . . . Combat Hostiles . | . . . . Parts Fried . | . . . . Impact Corruptions . | . . . . Robots Melted . | . . . . Combat Hostiles . | . . . . Parts Melted . | . . . . Heat Transferred 1163 | . 323 137 703 Parts Sabotaged . | . . . . Parts Stolen . | . . . . Parts Stripped . | . . . . Power Chain Reactions . | . . . . Alert | -11 -10 -10 -10 ------- Run | Yrd Mat Min Sub Maximum Alert Level . | . . . . Low Security (%) 100 | 100 100 100 . Level 1 . | . . . . Level 2 . | . . . . Level 3 . | . . . . Level 4 . | . . . . Level 5 . | . . . . High Security . | . . . . Max Security . | . . . . Peak Influence 79 | . 35 79 . Initial 9 | . . 9 . Average 20 | . 9 32 . Influence Increases 135 | . 45 70 20 Destroy 0b10 Robot/C 100 | . 20 60 20 Destroy Leader 20 | . 10 10 . Lose Combat Pursuer 15 | . 15 . . Influence Decreases 135 | . 20 95 20 Entered New Map 16 | . . 16 . Time Decay 119 | . 20 79 20 Squads Dispatched . | . . . . Investigation . | . . . . Extermination . | . . . . Reinforcement . | . . . . Assault . | . . . . Garrison . | . . . . Intercept . | . . . . Searches Triggered . | . . . . Construction Impeded . | . . . . Haulers Reinforced . | . . . . Active Scanning Responses . | . . . . Cargo Convoy Interrupts . | . . . . Stealth | -11 -10 -10 -10 --------- Run | Yrd Mat Min Sub Distress Signals 1 | . 1 . . Communications Jammed . | . . . . Distress Signals . | . . . . Times Spotted 21 | . 4 2 15 Peak Tracking Total 6 | . 3 2 6 Tactical Retreats 1 | . 1 . . Traps | -11 -10 -10 -10 ------- Run | Yrd Mat Min Sub Traps Triggered . | . . . . Indirectly . | . . . . Trap Hack Attempts . | . . . . Triggered . | . . . . Disarmed . | . . . . Reprogrammed . | . . . . Reused . | . . . . Traps Extracted . | . . . . Installed . | . . . . Triggered . | . . . . Machines | -11 -10 -10 -10 ---------- Run | Yrd Mat Min Sub Machines Disabled . | . . . . Max in Single Turn . | . . . . Machines Repaired . | . . . . Machines Dismantled . | . . . . Machines Sabotaged . | . . . . Overloaded Fab Kills . | . . . . Hacking | -11 -10 -10 -10 --------- Run | Yrd Mat Min Sub Machines Accessed . | . . . . Terminals . | . . . . Fabricators . | . . . . Repair Stations . | . . . . Recycling Units . | . . . . Scanalyzers . | . . . . Garrison Access . | . . . . Total Hacks . | . . . . Successful . | . . . . Failed . | . . . . Catastrophic . | . . . . Database Lockouts . | . . . . Manual . | . . . . Terminals . | . . . . Fabricators . | . . . . Repair Stations . | . . . . Recycling Units . | . . . . Scanalyzers . | . . . . Garrison Access . | . . . . Terminal Hacks . | . . . . Fabricator Hacks . | . . . . Repair Station Hacks . | . . . . Recycling Unit Hacks . | . . . . Scanalyzer . | . . . . Garrison Access Hacks . | . . . . Unauthorized Hacks . | . . . . Terminals . | . . . . Fabricators . | . . . . Repair Stations . | . . . . Recycling Units . | . . . . Scanalyzers . | . . . . Garrison Access . | . . . . Data Cores Recovered . | . . . . Used . | . . . . Hacking Detections . | . . . . Full Trace Events . | . . . . Feedback Events . | . . . . Feedback Blocked . | . . . . Robot Schematics Acquired . | . . . . Robots Built . | . . . . Authchips . | . . . . Time . | . . . . Total Robot Build Rating . | . . . . Part Schematics Acquired . | . . . . Parts Built . | . . . . Authchips . | . . . . Time . | . . . . Total Part Build Rating . | . . . . Part Studies Acquired . | . . . . Parts Repaired . | . . . . Time . | . . . . Parts Recycled . | . . . . Recycled Matter . | . . . . Retrieved Matter . | . . . . Retrieved Components . | . . . . Parts Scanalyzed . | . . . . Part Schematics Acquired . | . . . . Parts Damaged . | . . . . Bothacking | -11 -10 -10 -10 ------------ Run | Yrd Mat Min Sub Used RIF Installer . | . . . . Robots Hacked . | . . . . Non-combat . | . . . . Combat . | . . . . Robot Hacks Applied . | . . . . Relay Couplers Released . | . . . . Fabnet Peak Effective % . | . . . . Robots Rewired . | . . . . Allies Hacked . | . . . . Hacks Repelled . | . . . . Allies | -11 -10 -10 -10 -------- Run | Yrd Mat Min Sub Total Allies . | . . . . Largest Group . | . . . . Highest-Rated Group . | . . . . Highest-Rated Ally . | . . . . Total Orders . | . . . . Ally Attacks . | . . . . Total Damage . | . . . . Kills . | . . . . Allies Corrupted . | . . . . Allies Melted . | . . . . Intel | -11 -10 -10 -10 ------- Run | Yrd Mat Min Sub Active Infowar (turns) 785 | . . 131 654 Optics 220 | . . . 220 Sensors 565 | . . 131 434 Robot Analysis Total . | . . . . Derelict Logs Recovered 2 | . . . 2 Drone Launches . | . . . . Drone Recoveries . | . . . . Exploration | -11 -10 -10 -10 ------------- Run | Yrd Mat Min Sub Turns Passed 1023 | 70 85 195 673 Spaces Moved 596 | 46 47 138 365 Core 10 | 7 . . 3 Treads . | . . . . Legs 586 | 39 47 138 362 Wheels . | . . . . Hover . | . . . . Flight . | . . . . Fastest Speed 50 | 50 120 120 120 Average Speed 133 | 109 120 120 143 Slowest Speed 250 | 120 120 120 250 Overloaded Moves . | . . . . Propulsion Burnouts . | . . . . Robots Hopped . | . . . . Potential Cave-ins . | . . . . Cave-ins Triggered . | . . . . Exploration Rate (%) 19 | 4 16 33 24 Regions Visited 3 Branch Regions 2 Pre-discovered Areas 2 | . . . 2 Known Exits Taken . | . . . . Unknown Exits Taken 3 | 1 1 1 . Scrap Searched 2 | . . 2 . Spaces Dug . | . . . . Terrain Destroyed . | . . . . Melee . | . . . . Projectile . | . . . . AOE . | . . . . Terrain Rammed . | . . . . Walls Destroyed . | . . . . Machines Disabled . | . . . . Actions | -11 -10 -10 -10 --------- Run | Yrd Mat Min Sub Total 719 | 62 60 160 437 Wait 22 | 5 2 1 14 Move 593 | 45 46 137 365 Hop . | . . . . Pick Up 22 | 6 2 8 6 Fast Attach 9 | 6 . 1 2 Attach 6 | . . 1 5 Detach . | . . . . Swap 2 | . . . 2 Drop 10 | . 2 7 1 Fire 55 | . 8 5 42 Melee . | . . . . Ram . | . . . . Kick . | . . . . Crush . | . . . . Escape Stasis . | . . . . Rewire . | . . . . Trap . | . . . . Miscellaneous . | . . . . Route ------- -11/Scrapyard -10/Materials -10/Mines -10/Subcaves (discovered 1 exit: [*Mat]) History --------- Turn | Location | Event 7 | -11/Scrapyard | Discovered new exit (range 14) 71 | -11/Scrapyard | Entered Materials 113 | -10/Materials | Discovered new exit (range 6) 156 | -10/Materials | Entered Mines 304 | -10/Mines | Build established: Mutant 325 | -10/Mines | Found a Scrap Suit stashed away for nefarious purposes 334 | -10/Mines | Found Scrap Suit 345 | -10/Mines | Discovered new exit (range 6) 351 | -10/Mines | Entered Subcaves 381 | -10/Subcaves | Learned location of Mines (-10) 453 | -10/Subcaves | Ambushed by swarm of Subdwellers 527 | -10/Subcaves | Lost 4 allies 555 | -10/Subcaves | Shifting Twisted Machinery released Sub. Power Source 555 | -10/Subcaves | Ambushed by Subdwellers from Twisted Machinery 593 | -10/Subcaves | Core integrity fell below 50% 629 | -10/Subcaves | Shifting Twisted Machinery released Battle Cannon 643 | -10/Subcaves | A swath of the cavern ceiling suddenly collapsed 792 | -10/Subcaves | Core integrity fell below 20% 820 | -10/Subcaves | Lost 3 parts (1n1u1w) 998 | -10/Subcaves | Discovered new exit (range 12) 1024 | -10/Subcaves | Destroyed by RD-HVI(R) with Subdweller Laser Last Messages --------------- Battle Cannon falls loose from the Twisted Machinery. A swath of the cavern ceiling suddenly collapses. Acquired 15 matter. BN-WV4(O) puts together Sub. Shrapnel Launcher. Acquired Battle Cannon. BN-WV4(O) puts together Sub. Monowheel. Carbon-fiber Leg destroyed. B3-YGF(R) destroyed. Sensor Array destroyed. Sub. Machine Gun destroyed. KR-ZBJ(R) destroyed. Acquired 64 matter. Acquired Sub. Optics. Acquired 10 matter. Acquired Battle Rifle. Acquired Sub. Power Source. Acquired Scrap Shield Fragment. EXIT=FOUND Map ----- +----------------------------------------------------+ | ??????????????????????????????????????????????? | | ??????????????????????????????????????????????? | | ??????????????????????????????????????????????? | | ??????????????????????????????????????????????? | | ??????????????????????????????????????????????? | | ??????????????????????????????????????????????? | | ??????????????????????????????????????????????? | | ??????????????????????????????????????????????? | | ??????????????????????????????????????????????? | | ??????????????????????????????????????????????? | | ??????????????????????????????????????????????? | | ??????????????????????????????????????????????? | | ??????????????????????????????????????????????? | | ?????????????????????????? ???????????????????? | | ??????????????????????????""??????????????????? | | ??????????????????????????"##?????????????????? | | ????????????????????#?????""##????????????????? | | ???????????????????## ??## < ?????????????????? | | ?????????????????# ""? ""?????????????????? | | #????????????????#" "?" ""??????????????????? | | ##???????????????#"" ## ??????????????????? | | ##???????????????# " ???????????????????? | | #??????????????## ""???????????????????? | | ???????????????? "R ##??????????????????? | | ???????????????????# #??????????????????? | | ???????????????????#"@##??????????????????? | | ???????????????????## #??????????????????? | | ???????????????????# #??????????????????? | | ??????????????????### ##??????????????????? | | ???????##????####### #??????????????????? | | ??????## ???## ## #??????????????????? | | #??????# #?## #??????????????????? | | ##?????# ## ## #??????????????????? | | ##????# #### #??????????????????? | | ##???# #??# #?????????????????? | | ##??# #?? #?????????????????? | | #??## #?? #?????????????????? | | #???## #?? #?????????????????? | | #?????## ##??### #?????????????????? | | #??????# ##??????##?????????????????? | | # #???#### #####??????????????????????? | | # #??## #??????????????????????? | | #??# ##??????????????????????? | | ##??# ###???????????????????????? | | ##### ### ###???????????????????????? | | ### ##??????????????????????? | | # #??????????????????????? | | ## ##??????????????????????? | | ###### ### #????#####??????????????? | | ####????####?# ## #??## #??????????????? | +----------------------------------------------------+ Best States ------------- Heat Dissipation 25 Energy Generation 10 Energy Capacity 250 Matter Stores 300 Matter Capacity 300 Sight Range 21 Robot Scan Range 14 Terrain Scan Density 10 Evasion (%) 55 Item Schematics ----------------- None Robot Schematics ------------------ None Fabricated ------------ Nothing Repaired ---------- Nothing Studied --------- None Alien Tech Used ----------------- None Achievements -------------- None Challenges ------------ None Game ------ Seed RemoteFactoryScanner Manual? 0 Play Time 00:26:24 Cumulative 15.9 hours Start 2026.04.03 @ 21:11:53 End 2026.04.03 @ 22:22:26 Sessions 1 Manual Loads 0 Difficulty Rogue Special Mode None Game No. 12 Rogue 12 Adventurer 0 Explorer 0 Win Type - Total 0 Types 0/0/0/0/0/0/0/0/0/0 Lore% 9 Gallery% 12 Achievement% 12 Wizard Run 0 Options --------- Layout 1 ASCII 0 Keyboard 1 Movement Numpad Keybinds 0 Fullscreen 1 Font 16/Terminus Map View 50x40 Zoom Use 0% Tactical HUD 0 Map Filters NONE Filters NONE Steam SD RUN: e5030739-2e8d-4051-b682-a4d93f198751